fUST/lending_fUST_20250311
["ID","MTS","AMOUNT","RATE_DAILY","PERIOD"]
[355843765,1741634649751,-507.75444196,0.00050958,120]
[355843766,1741634649778,-592.84,0.00050958,30]
[355843767,1741634649805,-500.0,0.00050958,120]
[355843768,1741634649831,-996.35,0.00050958,120]
[355843769,1741634649857,-477.23061292,0.00050958,120]
[355843770,1741634649888,-500.0,0.00050958,120]
[355843771,1741634649914,-2013.49,0.00050958,120]
[355843772,1741634649940,-500.0,0.00050958,120]
[355843773,1741634649966,-531.91355941,0.00050958,120]
[355843774,1741634649993,-4433.4,0.00050958,120]
[355843775,1741634650019,-4433.4,0.00050958,120]
[355843776,1741634650045,-500.0,0.00050958,120]
[355843777,1741634650074,-4433.4,0.00050958,120]
[355843778,1741634650100,-4433.4,0.00050958,120]
[355843779,1741634650125,-4433.4,0.00050958,120]
[355843780,1741634650156,-4433.4,0.00050958,120]
[355843781,1741634650346,-4433.4,0.00050958,120]
[355843782,1741634650392,-4433.4,0.00050958,120]
[355843783,1741634650457,-500.0,0.00050958,120]
[355843784,1741634650506,-4433.4,0.00050958,120]
[355843785,1741634650549,-4433.4,0.00050958,120]
[355843786,1741634650578,-4433.4,0.00050958,120]
[355843787,1741634650608,-932.97,0.00050958,120]
[355843788,1741634650636,-4433.4,0.00050958,120]
[355843789,1741634650666,-4433.4,0.00050958,120]
[355843790,1741634650695,-4678.54,0.00050958,120]
[355843791,1741634650722,-4433.4,0.00050958,120]
[355843792,1741634650750,-4433.4,0.00050958,120]
[355843793,1741634650778,-4433.4,0.00050958,120]
[355843794,1741634650807,-500.0,0.00050958,120]
[355843795,1741634650837,-1782.12,0.00050958,120]
[355843796,1741634650868,-4433.4,0.00050958,120]
[355843797,1741634650902,-4433.4,0.00050958,120]
[355843798,1741634650933,-4433.4,0.00050958,120]
[355843799,1741634650973,-4433.4,0.00050958,120]
[355843800,1741634651009,-4433.4,0.00050958,120]
[355843801,1741634651043,-500.0,0.00050958,120]
[355843802,1741634651073,-500.0,0.00050958,45]
[355843803,1741634651107,-4433.4,0.00050958,120]
[355843804,1741634651138,-4433.4,0.00050958,120]
[355843805,1741634651168,-4433.48,0.00050958,120]
[355843806,1741634651204,-500.0,0.00050958,120]
[355843807,1741634651242,-500.0,0.00050958,120]
[355843808,1741634651274,-5617.34,0.00050958,120]
[355843809,1741634651302,-500.0,0.00050958,120]
[355843810,1741634651330,-500.0,0.00050958,120]
[355843811,1741634651360,-500.0,0.00050958,120]
[355843812,1741634651393,-8829.31,0.00050958,120]
[355843813,1741634651423,-500.0,0.00050958,120]
[355843814,1741634651453,-3648.52,0.00050958,120]
[355843815,1741634651483,-1071.61,0.00050958,120]
[355843816,1741634651515,-760.85,0.00050958,120]
[355843817,1741634651544,-500.0,0.00050958,120]
[355843818,1741634651574,-500.0,0.00050958,120]
[355843819,1741634651602,-500.0,0.00050958,120]
[355843820,1741634651631,-500.0,0.00050958,120]
[355843821,1741634651658,-411.708171,0.00050958,120]
[355843822,1741634651685,-500.0,0.00050958,120]
[355843823,1741634651713,-500.0,0.00050958,120]
[355843824,1741634651740,-500.0,0.00050958,120]
[355843825,1741634651766,-151.0,0.00050958,120]
[355843826,1741634651793,-151.0,0.00050958,120]
[355843827,1741634651820,-151.0,0.00050958,120]
[355843828,1741634651847,-151.0,0.00050958,120]
[355843829,1741634651877,-500.0,0.00050958,120]
[355843830,1741634651911,-151.0,0.00050958,120]
[355843831,1741634651939,-411.708164,0.00050958,120]
[355843832,1741634651968,-1212.22,0.00050958,120]
[355843833,1741634651999,-500.0,0.00050958,120]
[355843834,1741634652032,-151.0,0.00050958,120]
[355843835,1741634652065,-500.0,0.00050958,120]
[355843836,1741634652093,-1343.82,0.00050958,120]
[355843837,1741634652121,-526.10929251,0.00050958,120]
[355843838,1741634652156,-500.0,0.00050958,120]
[355843839,1741634652186,-500.0,0.00050958,120]
[355843840,1741634652225,-500.0,0.00050958,120]
[355843841,1741634652254,-500.0,0.00050958,120]
[355843842,1741634652283,-1206.47,0.00050958,120]
[355843843,1741634652311,-8008.22,0.00050958,120]
[355843844,1741634652338,-898.89,0.00050958,120]
[355843845,1741634652365,-500.0,0.00050958,120]
[355843846,1741634652394,-500.0,0.00050958,120]
[355843847,1741634652419,-500.0,0.00050958,120]
[355843848,1741634652446,-3411.55,0.00050958,120]
[355843849,1741634652472,-12509.02,0.00050958,120]
[355843850,1741634652497,-500.0,0.00050958,120]
[355843851,1741634652521,-500.0,0.00050958,120]
[355843852,1741634652546,-705.81,0.00050958,120]
[355843853,1741634652570,-710.74,0.00050958,120]
[355843854,1741634652595,-500.0,0.00050958,120]
[355843855,1741634652622,-9598.29,0.00050958,120]
[355843856,1741634652651,-500.0,0.00050958,120]
[355843857,1741634652676,-500.0,0.00050958,120]
[355843858,1741634652703,-586.59,0.00050958,120]
[355843859,1741634652728,-508.03713914,0.00050958,120]
[355843860,1741634652754,-500.0,0.00050958,120]
[355843861,1741634652779,-500.0,0.00050958,120]
[355843862,1741634652805,-500.0,0.00050958,120]
[355843863,1741634652831,-500.0,0.00050958,120]
[355843864,1741634652857,-2771.86,0.00050958,120]
[355843865,1741634652887,-500.0,0.00050958,120]
[355843866,1741634652918,-500.0,0.00050958,120]
[355843867,1741634652944,-500.0,0.00050958,120]
[355843868,1741634653133,-500.0,0.00050958,120]
[355843869,1741634653166,-1442.36,0.00050958,120]
[355843870,1741634653192,-500.0,0.00050958,120]
[355843871,1741634653219,-500.0,0.00050958,120]
[355843872,1741634653244,-5657.78,0.00050958,120]
[355843873,1741634653271,-500.0,0.00050958,120]
[355843874,1741634653296,-796.29,0.00050958,120]
[355843875,1741634653323,-500.0,0.00050958,120]
[355843876,1741634653349,-500.0,0.00050958,120]
[355843877,1741634653375,-5551.46,0.00050958,120]
[355843878,1741634653407,-2183.17,0.00050958,120]
[355843879,1741634653433,-500.0,0.00050958,120]
[355843880,1741634653461,-2581.920992,0.00050958,120]
[355843881,1741634653488,-2581.920992,0.00050958,120]
[355843882,1741634653514,-2581.920992,0.00050958,120]
[355843883,1741634653540,-522.640524,0.00050958,120]
[355843884,1741634653566,-500.0,0.00050958,120]
[355843885,1741634653592,-1240.41,0.00050958,120]
[355843886,1741634653617,-500.0,0.00050958,120]
[355843887,1741634653645,-2581.920992,0.00050958,120]
[355843888,1741634653671,-1508.14,0.00050958,120]
[355843889,1741634653697,-505.42,0.00050958,120]
[355843890,1741634653723,-2581.920992,0.00050958,120]
[355843891,1741634653749,-2581.920992,0.00050958,120]
[355843892,1741634653774,-344.27042701,0.00050958,120]
[355843893,1741634653800,-500.0,0.00050958,120]
[355843894,1741634653829,-500.0,0.00050958,120]
[355843895,1741634653856,-500.0,0.00050958,120]
[355843896,1741634653884,-655.45842754,0.00050985,97]
[355843897,1741634653913,-10000.0,0.00051,53]
[355843898,1741634653939,-7000.0,0.00051,60]
[355843899,1741634653965,-7000.0,0.00051,65]
[355843900,1741634653994,-7000.0,0.00051,70]
[355843901,1741634654020,-74146.19682859,0.00051,120]
[355843905,1741634681720,-1644.40264039,0.000362,98]
[355843906,1741634681749,-2061.78,0.0004,30]
[355843907,1741634681777,-12580.83,0.0004,30]
[355843908,1741634681805,-348.09,0.0004,30]
[355843909,1741634681833,-2061.78,0.000466,30]
[355843910,1741634681859,-12580.83,0.000466,30]
[355843911,1741634681886,-348.09,0.000466,30]
[355843912,1741634681916,-2061.78,0.000484,30]
[355843913,1741634681942,-12580.83,0.000484,30]
[355843914,1741634681969,-348.09,0.000484,30]
[355843915,1741634682000,-2061.78,0.000493,30]
[355843916,1741634682027,-12580.83,0.000493,30]
[355843917,1741634682056,-348.09,0.000493,30]
[355843918,1741634682090,-5000.0,0.00049315,120]
[355843919,1741634682117,-565.465931,0.00049315,120]
[355843920,1741634682147,-2061.78,0.000503,30]
[355843921,1741634682181,-12580.83,0.000503,30]
[355843922,1741634682208,-348.09,0.000503,30]
[355843923,1741634682237,-151.0,0.00050325,120]
[355843924,1741634682264,-151.0,0.00050325,120]
[355843925,1741634682291,-151.0,0.00050325,90]
[355843926,1741634682317,-315.01,0.000504,30]
[355843927,1741634682349,-8620.18,0.00050958,120]
[355843928,1741634682375,-506.59819687,0.00050958,120]
[355843929,1741634682401,-151.0,0.00050958,120]
[355843930,1741634682430,-500.0,0.00050958,120]
[355843931,1741634682456,-500.0,0.00050958,120]
[355843932,1741634682482,-500.0,0.00050958,120]
[355843933,1741634682509,-500.0,0.00050958,120]
[355843934,1741634682537,-500.0,0.00050958,120]
[355843935,1741634682563,-500.0,0.00050958,120]
[355843936,1741634682590,-500.0,0.00050958,120]
[355843937,1741634682617,-500.0,0.00050958,120]
[355843938,1741634682642,-500.0,0.00050958,120]
[355843939,1741634682669,-500.0,0.00050958,120]
[355843940,1741634682696,-500.0,0.00050958,120]
[355843941,1741634682722,-500.0,0.00050958,120]
[355843942,1741634682749,-500.0,0.00050958,120]
[355843943,1741634682776,-500.0,0.00050958,120]
[355843944,1741634682804,-500.0,0.00050958,120]
[355843945,1741634682831,-500.0,0.00050958,120]
[355843946,1741634682858,-626.23198951,0.00050958,120]
[355843947,1741634682887,-500.0,0.00050958,120]
[355843948,1741634682913,-500.0,0.00050958,120]
[355843949,1741634682939,-500.0,0.00050958,120]
[355843950,1741634682965,-500.0,0.00050958,120]
[355843951,1741634682994,-1144.04,0.00050958,120]
[355843952,1741634683020,-203.7473701,0.00050958,120]
[355843953,1741634683048,-500.0,0.00050958,120]
[355843954,1741634683077,-500.0,0.00050958,120]
[355843955,1741634683102,-500.0,0.00050958,120]
[355843956,1741634683127,-500.0,0.00050958,120]
[355843957,1741634683154,-500.0,0.00050958,120]
[355843958,1741634683181,-500.0,0.00050958,120]
[355843959,1741634683206,-500.0,0.00050958,120]
[355843960,1741634683232,-500.0,0.00050958,120]
[355843961,1741634683258,-500.0,0.00050958,120]
[355843962,1741634683283,-625.18973373,0.00050958,120]
[355843963,1741634683308,-554.7951754,0.00050958,120]
[355843964,1741634683333,-533.28,0.00050958,120]
[355843965,1741634683359,-500.0,0.00050958,120]
[355843966,1741634683385,-500.38948692,0.00050958,120]
[355843967,1741634683422,-1231.57,0.00050958,120]
[355843968,1741634683447,-301.17938195,0.00050958,120]
[355843969,1741634683472,-525.49046842,0.00050958,120]
[355843970,1741634683498,-500.0,0.00050958,120]
[355843971,1741634683525,-615.43810266,0.00050958,120]
[355843972,1741634683551,-500.0,0.00050958,120]
[355843973,1741634683579,-500.0,0.00050958,120]
[355843974,1741634683604,-500.0,0.00050958,120]
[355843975,1741634683849,-500.0,0.00050958,120]
[355843976,1741634683878,-500.0,0.00050958,120]
[355843977,1741634683907,-562.15,0.00050958,120]
[355843978,1741634683934,-500.0,0.00050958,120]
[355843979,1741634683961,-500.0,0.00050958,120]
[355843980,1741634683988,-500.0,0.00050958,120]
[355843981,1741634684016,-3093.79,0.00050958,120]
[355843982,1741634684042,-500.0,0.00050958,120]
[355843983,1741634684069,-865.06,0.00050958,120]
[355843984,1741634684094,-1650.67,0.00050958,120]
[355843985,1741634684120,-500.0,0.00050958,120]
[355843986,1741634684146,-151.0,0.00050999,120]
[355843987,1741634684176,-329741.80317141,0.00051,120]
[355843988,1741634684205,-25000.0,0.00051,90]
[355843989,1741634684234,-500.0,0.00051,120]
[355843990,1741634684261,-234.201,0.00051,120]
[355843991,1741634684288,-313.976993,0.00051,120]
[355843992,1741634684316,-313.976993,0.00051,120]
[355843993,1741634684344,-178.748256,0.00051,120]
[355843994,1741634684370,-182.502146,0.00051,120]
[355843995,1741634684396,-182.502146,0.00051,120]
[355843996,1741634684425,-336.288336,0.00051,120]
[355843997,1741634684451,-336.288336,0.00051,120]
[355843998,1741634684477,-151.0,0.00051,120]
[355843999,1741634684502,-207.744303,0.00051,120]
[355844000,1741634684528,-151.0,0.00051,120]
[355844001,1741634684554,-243.146731,0.00051,120]
[355844002,1741634684581,-151.0,0.00051,120]
[355844003,1741634684607,-151.0,0.00051,120]
[355844004,1741634684633,-151.0,0.00051,120]
[355844005,1741634684660,-191.407704,0.00051,120]
[355844006,1741634684686,-171.262094,0.00051,120]
[355844007,1741634684712,-171.262094,0.00051,120]
[355844008,1741634684739,-174.512414,0.00051,120]
[355844009,1741634684764,-174.512414,0.00051,120]
[355844010,1741634684790,-174.512414,0.00051,120]
[355844011,1741634684815,-174.512414,0.00051,120]
[355844012,1741634684841,-568.292348,0.00051,120]
[355844013,1741634684866,-225.732025,0.00051,120]
[355844014,1741634684891,-225.732025,0.00051,120]
[355844015,1741634684919,-225.732025,0.00051,120]
[355844016,1741634684946,-225.732025,0.00051,120]
[355844017,1741634684973,-321.404413,0.00051,120]
[355844018,1741634685001,-321.404413,0.00051,120]
[355844019,1741634685029,-315.575452,0.00051,120]
[355844020,1741634685057,-315.575452,0.00051,120]
[355844021,1741634685086,-352.893851,0.00051,120]
[355844022,1741634685111,-352.893851,0.00051,120]
[355844023,1741634685137,-152.299815,0.00051,120]
[355844024,1741634685164,-154.932747,0.00051,120]
[355844025,1741634685190,-154.932747,0.00051,120]
[355844026,1741634685217,-151.0,0.00051,120]
[355844027,1741634685244,-883.077045,0.00051,120]
[355844028,1741634685271,-883.077045,0.00051,120]
[355844029,1741634685297,-203.135811,0.00051,120]
[355844030,1741634685324,-151.0,0.00051,120]
[355844031,1741634685350,-2581.920992,0.00051,120]
[355844032,1741634685376,-2581.920992,0.00051,120]
[355844033,1741634685402,-500.0,0.0005106,60]
[355844034,1741634685430,-508.21556026,0.0005106,60]
[355844035,1741634685457,-655.45842754,0.00051085,95]
[355844036,1741634685483,-315.01,0.000511,30]
[355844037,1741634685509,-655.45842754,0.00051185,98]
[355844038,1741634685546,-2061.78,0.000512,30]
[355844039,1741634685585,-12580.83,0.000512,30]
[355844040,1741634685617,-348.09,0.000512,30]
[355844041,1741634685652,-500.0,0.00051232,120]
[355844042,1741634685690,-313.976993,0.00051232,120]
[355844043,1741634685727,-313.976993,0.00051232,120]
[355844044,1741634685761,-178.748256,0.00051232,120]
[355844045,1741634685794,-182.502146,0.00051232,120]
[355844046,1741634685828,-182.502146,0.00051232,120]
[355844047,1741634685863,-336.288336,0.00051232,120]
[355844048,1741634685893,-336.288336,0.00051232,120]
[355844049,1741634685927,-151.0,0.00051232,120]
[355844050,1741634685964,-151.0,0.00051232,120]
[355844051,1741634686004,-151.0,0.00051232,120]
[355844052,1741634686043,-151.0,0.00051232,120]
[355844053,1741634686074,-151.0,0.00051232,120]
[355844054,1741634686106,-151.0,0.00051232,120]
[355844055,1741634686144,-151.0,0.00051232,120]
[355844056,1741634686178,-500.0,0.00051232,120]
[355844057,1741634686214,-151.0,0.00051232,120]
[355844058,1741634686248,-151.0,0.00051232,120]
[355844059,1741634686280,-171.262094,0.00051232,120]
[355844060,1741634686314,-171.262094,0.00051232,120]
[355844061,1741634686346,-171.262094,0.00051232,120]
[355844062,1741634686381,-171.262094,0.00051232,120]
[355844063,1741634686414,-500.0,0.00051232,120]
[355844064,1741634686447,-500.0,0.00051232,120]
[355844065,1741634686480,-500.0,0.00051232,120]
[355844066,1741634686513,-500.0,0.00051232,120]
[355844067,1741634686546,-500.0,0.00051232,120]
[355844068,1741634686579,-500.0,0.00051232,120]
[355844069,1741634686609,-500.0,0.00051232,120]
[355844070,1741634686641,-500.0,0.00051232,120]
[355844071,1741634686673,-500.0,0.00051232,120]
[355844072,1741634686705,-500.0,0.00051232,120]
[355844073,1741634686735,-500.0,0.00051232,120]
[355844074,1741634686766,-508.13041725,0.00051232,120]
[355844075,1741634686798,-500.0,0.00051232,120]
[355844076,1741634686829,-508.76094317,0.00051232,120]
[355844077,1741634686861,-500.0,0.00051232,120]
[355844078,1741634686892,-500.0,0.00051232,120]
[355844079,1741634686924,-500.0,0.00051232,120]
[355844080,1741634686955,-500.0,0.00051232,120]
[355844081,1741634686985,-722.09,0.00051232,120]
[355844082,1741634687021,-523.11042699,0.00051232,120]
[355844083,1741634687052,-500.0,0.00051232,120]
[355844084,1741634687085,-500.0,0.00051232,120]
[355844085,1741634687115,-500.0,0.00051232,120]
[355844086,1741634687146,-500.0,0.00051232,120]
[355844087,1741634687180,-500.0,0.00051232,120]
[355844088,1741634687211,-500.0,0.00051232,120]
[355844089,1741634687242,-500.0,0.00051232,120]
[355844090,1741634687275,-511.93299344,0.00051232,120]
[355844091,1741634687305,-511.39974135,0.00051232,120]
[355844092,1741634687336,-500.0,0.00051232,120]
[355844093,1741634687366,-500.0,0.00051232,120]
[355844094,1741634687396,-500.0,0.00051232,120]
[355844095,1741634687426,-500.0,0.00051232,120]
[355844096,1741634687456,-637.17,0.00051232,120]
[355844098,1741634687485,-561.47590592,0.00051232,120]
[355844100,1741634687515,-500.0,0.00051232,120]
[355844102,1741634687547,-500.0,0.00051232,120]
[355844111,1741634687921,-966.69,0.00051232,120]
[355844113,1741634687969,-500.0,0.00051232,120]
[355844114,1741634688006,-174.512414,0.00051232,120]
[355844116,1741634688038,-174.512414,0.00051232,120]
[355844118,1741634688070,-174.512414,0.00051232,120]
[355844119,1741634688100,-174.512414,0.00051232,120]
[355844121,1741634688128,-517.93799843,0.00051232,120]
[355844122,1741634688163,-568.292348,0.00051232,120]
[355844124,1741634688195,-500.0,0.00051232,120]
[355844125,1741634688226,-568.292348,0.00051232,120]
[355844127,1741634688257,-500.0,0.00051232,120]
[355844129,1741634688288,-506.43951826,0.00051232,120]
[355844130,1741634688317,-625.97775873,0.00051232,120]
[355844131,1741634688346,-500.0,0.00051232,120]
[355844132,1741634688377,-500.0,0.00051232,120]
[355844133,1741634688405,-500.0,0.00051232,120]
[355844134,1741634688440,-528.35706217,0.00051232,120]
[355844135,1741634688467,-500.0,0.00051232,120]
[355844136,1741634688497,-509.11450343,0.00051232,120]
[355844137,1741634688525,-500.0,0.00051232,120]
[355844138,1741634688553,-500.0,0.00051232,120]
[355844139,1741634688581,-500.0,0.00051232,120]
[355844140,1741634688610,-500.0,0.00051232,120]
[355844142,1741634688640,-500.0,0.00051232,120]
[355844143,1741634688671,-500.0,0.00051232,120]
[355844145,1741634688698,-503.65001763,0.00051232,120]
[355844146,1741634688726,-930.98,0.00051232,120]
[355844148,1741634688756,-500.0,0.00051232,120]
[355844149,1741634688785,-500.0,0.00051232,120]
[355844151,1741634688814,-500.0,0.00051232,120]
[355844153,1741634688844,-500.0,0.00051232,120]
[355844154,1741634688872,-500.0,0.00051232,120]
[355844156,1741634688901,-500.0,0.00051232,120]
[355844158,1741634688933,-500.0,0.00051232,120]
[355844159,1741634688963,-500.0,0.00051232,120]
[355844161,1741634688993,-212.85738556,0.00051232,120]
[355844162,1741634689024,-513.09225954,0.00051232,120]
[355844164,1741634689055,-941.74,0.00051232,120]
[355844166,1741634689083,-500.0,0.00051232,120]
[355844167,1741634689110,-628.95,0.00051232,120]
[355844169,1741634689137,-500.0,0.00051232,120]
[355844170,1741634689167,-500.0,0.00051232,120]
[355844172,1741634689197,-225.732025,0.00051232,120]
[355844174,1741634689227,-225.732025,0.00051232,120]
[355844175,1741634689256,-500.0,0.00051232,120]
[355844177,1741634689285,-509.08171873,0.00051232,120]
[355844178,1741634689315,-707.99,0.00051232,120]
[355844180,1741634689345,-590.09,0.00051232,120]
[355844181,1741634689376,-225.732025,0.00051232,120]
[355844183,1741634689407,-516.40109541,0.00051232,120]
[355844185,1741634689439,-225.732025,0.00051232,120]
[355844186,1741634689468,-640.54781808,0.00051232,120]
[355844188,1741634689498,-500.0,0.00051232,120]
[355844190,1741634689527,-500.0,0.00051232,120]
[355844191,1741634689557,-516.88666085,0.00051232,120]
[355844193,1741634689589,-500.0,0.00051232,120]
[355844194,1741634689618,-666.63,0.00051232,120]
[355844196,1741634689644,-500.0,0.00051232,120]
[355844197,1741634689676,-516.29823415,0.00051232,120]
[355844199,1741634689703,-500.0,0.00051232,120]
[355844201,1741634689733,-500.0,0.00051232,120]
[355844202,1741634689762,-500.0,0.00051232,120]
[355844204,1741634689791,-500.0,0.00051232,120]
[355844205,1741634689820,-516.90094779,0.00051232,120]
[355844207,1741634689849,-373.1130874,0.00051232,120]
[355844208,1741634689878,-500.0,0.00051232,120]
[355844210,1741634689905,-512.35234322,0.00051232,120]
[355844212,1741634689935,-990.23,0.00051232,120]
[355844213,1741634689963,-1039.72,0.00051232,120]
[355844215,1741634689993,-500.0,0.00051232,120]
[355844216,1741634690022,-821.71,0.00051232,120]
[355844218,1741634690051,-500.0,0.00051232,120]
[355844219,1741634690080,-671.85,0.00051232,120]
[355844221,1741634690106,-550.10720897,0.00051232,120]
[355844223,1741634690133,-520.90731126,0.00051232,120]
[355844224,1741634690163,-409.13216345,0.00051232,120]
[355844226,1741634690192,-500.0,0.00051232,120]
[355844227,1741634690221,-516.6638954,0.00051232,120]
[355844229,1741634690250,-662.81,0.00051232,120]
[355844231,1741634690278,-533.09867091,0.00051232,120]
[355844232,1741634690305,-520.82287023,0.00051232,120]
[355844234,1741634690333,-500.0,0.00051232,120]
[355844235,1741634690361,-500.0,0.00051232,120]
[355844237,1741634690391,-1093.3,0.00051232,120]
[355844238,1741634690420,-500.0,0.00051232,120]
[355844240,1741634690450,-500.0,0.00051232,120]
[355844242,1741634690478,-500.0,0.00051232,120]
[355844243,1741634690505,-528.85788296,0.00051232,120]
[355844245,1741634690532,-500.0,0.00051232,120]
[355844246,1741634690560,-500.0,0.00051232,120]
[355844248,1741634690587,-219.70603602,0.00051232,120]
[355844250,1741634690615,-520.62,0.00051232,120]
[355844251,1741634690646,-325.14241397,0.00051232,120]
[355844253,1741634690674,-154.11816038,0.00051232,120]
[355844254,1741634690701,-723.93,0.00051232,120]
[355844256,1741634690727,-500.0,0.00051232,120]
[355844258,1741634690753,-500.0,0.00051232,120]
[355844259,1741634690781,-500.0,0.00051232,120]
[355844261,1741634690807,-511.91215796,0.00051232,120]
[355844262,1741634690834,-500.0,0.00051232,120]
[355844268,1741634691002,-500.0,0.00051232,120]
[355844270,1741634691094,-500.0,0.00051232,120]
[355844272,1741634691124,-500.0,0.00051232,120]
[355844273,1741634691154,-545.41,0.00051232,120]
[355844275,1741634691188,-531.15384384,0.00051232,120]
[355844276,1741634691220,-500.0,0.00051232,120]
[355844278,1741634691248,-395.75672126,0.00051232,120]
[355844279,1741634691277,-516.69251311,0.00051232,120]
[355844281,1741634691305,-500.0,0.00051232,120]
[355844283,1741634691332,-500.0,0.00051232,120]
[355844284,1741634691360,-564.06331859,0.00051232,120]
[355844286,1741634691388,-500.0,0.00051232,120]
[355844287,1741634691418,-255.50924491,0.00051232,120]
[355844289,1741634691444,-500.0,0.00051232,120]
[355844291,1741634691471,-500.0,0.00051232,120]
[355844292,1741634691497,-500.0,0.00051232,120]
[355844294,1741634691524,-567.29,0.00051232,120]
[355844295,1741634691551,-1069.2,0.00051232,120]
[355844297,1741634691577,-500.0,0.00051232,120]
[355844298,1741634691604,-569.12,0.00051232,120]
[355844300,1741634691633,-500.0,0.00051232,120]
[355844302,1741634691661,-500.0,0.00051232,120]
[355844303,1741634691692,-500.0,0.00051232,120]
[355844305,1741634691719,-519.41817065,0.00051232,120]
[355844306,1741634691746,-523.15862045,0.00051232,120]
[355844308,1741634691774,-500.0,0.00051232,120]
[355844310,1741634691802,-500.0,0.00051232,120]
[355844311,1741634691831,-500.0,0.00051232,120]
[355844313,1741634691859,-525.57,0.00051232,120]
[355844314,1741634691888,-524.43084111,0.00051232,120]
[355844316,1741634691918,-500.0,0.00051232,120]
[355844317,1741634691945,-500.0,0.00051232,120]
[355844319,1741634691973,-500.0,0.00051232,120]
[355844321,1741634692005,-631.11070235,0.00051232,120]
[355844322,1741634692032,-329.41729821,0.00051232,120]
[355844324,1741634692060,-500.0,0.00051232,120]
[355844326,1741634692092,-500.0,0.00051232,120]
[355844327,1741634692120,-531.45902183,0.00051232,120]
[355844328,1741634692149,-385.83440619,0.00051232,120]
[355844330,1741634692180,-500.0,0.00051232,120]
[355844332,1741634692215,-500.0,0.00051232,120]
[355844333,1741634692244,-500.0,0.00051232,120]
[355844335,1741634692274,-500.0,0.00051232,120]
[355844336,1741634692303,-567.26,0.00051232,120]
[355844338,1741634692331,-1000.0,0.00051232,120]
[355844340,1741634692359,-500.0,0.00051232,120]
[355844341,1741634692386,-397.92216961,0.00051232,120]
[355844343,1741634692417,-500.0,0.00051232,120]
[355844344,1741634692444,-523.29672895,0.00051232,120]
[355844346,1741634692471,-500.0,0.00051232,120]
[355844347,1741634692499,-500.0,0.00051232,120]
[355844349,1741634692526,-500.0,0.00051232,120]
[355844351,1741634692554,-2049.14,0.00051232,120]
[355844352,1741634692580,-528.26333169,0.00051232,120]
[355844354,1741634692607,-500.0,0.00051232,120]
[355844355,1741634692633,-500.0,0.00051232,120]
[355844357,1741634692660,-186.00216506,0.00051232,120]
[355844359,1741634692690,-500.0,0.00051232,120]
[355844360,1741634692718,-500.0,0.00051232,120]
[355844362,1741634692746,-500.0,0.00051232,120]
[355844364,1741634692773,-500.0,0.00051232,120]
[355844365,1741634692801,-500.0,0.00051232,120]
[355844367,1741634692829,-634.97,0.00051232,120]
[355844369,1741634692859,-500.0,0.00051232,120]
[355844370,1741634692887,-884.18,0.00051232,120]
[355844372,1741634692917,-1733.86,0.00051232,120]
[355844373,1741634692945,-500.0,0.00051232,120]
[355844375,1741634692974,-500.0,0.00051232,120]